fUSD/lending_fUSD_20240528
["ID","MTS","AMOUNT","RATE_DAILY","PERIOD"]
[328126116,1716910235754,-599.11963664,0.00024,2]
[328126117,1716910235763,-599.11963664,0.00024,2]
[328126118,1716910235772,-599.11963664,0.00024,2]
[328126119,1716910235782,-599.11963664,0.00024,2]
[328126120,1716910235791,-599.11963664,0.00024,2]
[328126121,1716910235801,-599.11963664,0.00024,2]
[328126122,1716910235810,-599.11963664,0.00024,2]
[328126123,1716910235820,-599.11963664,0.00024,2]
[328126124,1716910235830,-599.11963664,0.00024,2]
[328126125,1716910235839,-599.11963664,0.00024,2]
[328126126,1716910235850,-599.11963664,0.00024,2]
[328126127,1716910235860,-599.11963664,0.00024,2]
[328126128,1716910235870,-599.11963664,0.00024,2]
[328126129,1716910235880,-599.11963664,0.00024,2]
[328126130,1716910235891,-599.11963664,0.00024,2]
[328126131,1716910235900,-599.11963664,0.00024,2]
[328126132,1716910235909,-599.11963664,0.00024,2]
[328126133,1716910235919,-599.11963664,0.00024,2]
[328126134,1716910235932,-599.11963664,0.00024,2]
[328126135,1716910235943,-599.11963664,0.00024,2]
[328126136,1716910235953,-599.11963664,0.00024,2]
[328126137,1716910235963,-599.11963664,0.00024,2]
[328126138,1716910235973,-599.11963664,0.00024,2]
[328126139,1716910235983,-599.11963664,0.00024,2]
[328126140,1716910235993,-278.24931682,0.00024083,2]
[328126141,1716910236002,-150.0,0.00024122,2]
[328126142,1716910236014,-153.82568732,0.0002418,2]
[328126143,1716910236026,-151.40096085,0.00024208,2]
[328126144,1716910236035,-157.25,0.00024224,2]
[328126145,1716910236046,-180.0,0.0002423,2]
[328126146,1716910236056,-151.40096085,0.00024237,2]
[328126147,1716910236066,-628.86268748,0.00024256,2]
[328126148,1716910236076,-170.5945697,0.00024277,2]
[328126149,1716910236086,-155.51610014,0.00024279,2]
[328126150,1716910236095,-166.66666667,0.00024344,2]
[328126151,1716910236105,-157.93985284,0.00024393,2]
[328126152,1716910236115,-278.24931682,0.00024411,2]
[328126153,1716910236126,-154.55028085,0.00024477,2]
[328126154,1716910236136,-1480.16513772,0.000245,3]
[328126155,1716910236145,-9795.97906374,0.00024529,2]
[328126156,1716910236155,-153.82568732,0.00024531,2]
[328126157,1716910236165,-151.40096085,0.00024546,2]
[328126158,1716910236174,-157.53000092,0.00024559,2]
[328126159,1716910236184,-278.24931682,0.00024561,2]
[328126160,1716910236197,-150.0,0.00024563,2]
[328126161,1716910236206,-150.0,0.0002459,2]
[328126162,1716910236215,-151.40096085,0.00024606,2]
[328126163,1716910236225,-150.0,0.00024614,2]
[328126164,1716910236234,-150.0,0.00024623,2]
[328126165,1716910236243,-150.0,0.00024635,2]
[328126166,1716910236253,-150.0,0.00024648,2]
[328126167,1716910236262,-150.0,0.00024654,2]
[328126168,1716910236271,-155.58720731,0.00024658,2]
[328126169,1716910236281,-155.51610014,0.00024666,2]
[328126170,1716910236292,-150.0,0.00024669,2]
[328126171,1716910236302,-150.0,0.00024669,2]
[328126172,1716910236311,-150.0,0.00024686,2]
[328126173,1716910236321,-150.0,0.00024688,2]
[328126174,1716910236330,-628.86268748,0.0002469,2]
[328126175,1716910236340,-10766.404645,0.0002469,2]
[328126176,1716910236350,-18633.044255,0.0002469,2]
[328126177,1716910236359,-2573.903444,0.0002469,2]
[328126178,1716910236369,-150.0,0.00024692,2]
[328126179,1716910236379,-150.0,0.00024698,2]
[328126180,1716910236388,-150.0,0.00024704,2]
[328126181,1716910236398,-150.0,0.00024706,2]
[328126182,1716910236408,-157.53000092,0.00024723,2]
[328126183,1716910236417,-150.0,0.00024727,2]
[328126184,1716910236427,-321.18266294,0.00024735,2]
[328126185,1716910236436,-169.59033498,0.0002475,2]
[328126186,1716910236448,-150.0,0.00024775,2]
[328126187,1716910236457,-150.0,0.00024779,2]
[328126188,1716910236466,-150.0,0.00024782,2]
[328126189,1716910236475,-278.24931682,0.00024783,2]
[328126190,1716910236484,-150.0,0.00024788,2]
[328126191,1716910236494,-150.0,0.00024793,2]
[328126192,1716910236504,-200.0,0.00024799,2]
[328126193,1716910236513,-4043.397585,0.000248,2]
[328126194,1716910236522,-150.0,0.00024808,2]
[328126195,1716910236532,-150.0,0.00024816,2]
[328126196,1716910236542,-344.39583779,0.00024847,2]
[328126197,1716910236551,-278.24931682,0.00024865,2]
[328126198,1716910236560,-217.0,0.00024877,2]
[328126199,1716910236570,-169.23736144,0.0002488,2]
[328126200,1716910236580,-133740.95464218,0.0002489,2]
[328126201,1716910236589,-6822.77134678,0.000249,2]
[328126202,1716910236599,-375.12325086,0.000249,2]
[328126203,1716910236608,-3442.99957813,0.0002492,2]
[328126204,1716910236618,-180.13432155,0.00024965,2]
[328126205,1716910236627,-161.3191443,0.00024996,2]
[328126206,1716910236636,-894.90390541,0.00024996,2]
[328126207,1716910236646,-10766.404645,0.00024999,2]
[328126208,1716910236656,-18633.044255,0.00024999,2]
[328126209,1716910236665,-2573.903444,0.00024999,2]
[328126210,1716910236674,-366.98193766,0.00024999,2]
[328126211,1716910236684,-52845.54642838,0.00025,2]
[328126212,1716910236695,-150.0,0.00025,2]
[328126213,1716910236705,-224.52395494,0.00025,2]
[328126214,1716910236714,-1278.30888725,0.00025,2]
[328126215,1716910236723,-470.72818446,0.00025,7]
[328126216,1716910236733,-500.0,0.00025,2]
[328126217,1716910236743,-3200.0,0.00025,2]
[328126218,1716910236753,-933.40125691,0.00025,2]
[328126219,1716910236763,-155.53768867,0.00025,2]
[328126220,1716910236772,-156.21023824,0.00025,2]
[328126221,1716910236782,-500.0,0.00025,2]
[328126222,1716910236792,-1040.4552301,0.00025,2]
[328126223,1716910236802,-155.0,0.00025,2]
[328126224,1716910236811,-1050.0,0.00025,2]
[328126225,1716910236820,-150.0,0.00025,4]
[328126226,1716910236830,-208.24764677,0.00025013,2]
[328126227,1716910236839,-155.6088353,0.0002503,2]
[328126228,1716910236848,-151.40096085,0.00025033,2]
[328126229,1716910236857,-155.51610014,0.00025035,2]
[328126230,1716910236867,-628.86268748,0.00025064,2]
[328126231,1716910236876,-154.55028085,0.00025084,2]
[328126232,1716910236886,-2100.0,0.00025099,2]
[328126233,1716910236895,-155.51610014,0.00025123,2]
[328126234,1716910236905,-154.55028085,0.00025139,2]
[328126235,1716910236915,-160.6944134,0.00025159,2]
[328126236,1716910236925,-163.02468081,0.00025161,2]
[328126237,1716910236938,-154.55028085,0.000252,2]
[328126238,1716910236949,-1000.0,0.00025205,2]
[328126239,1716910236958,-150.24327023,0.00025207,2]
[328126240,1716910236968,-344.39583779,0.00025262,2]
[328126241,1716910236979,-10766.404645,0.00025307,2]
[328126242,1716910236988,-18633.044255,0.00025307,2]
[328126243,1716910236998,-2573.903444,0.00025307,2]
[328126244,1716910237008,-344.39583779,0.00025393,2]
[328126245,1716910237020,-344.39583779,0.00025398,2]
[328126246,1716910237031,-151.40096085,0.00025421,2]
[328126247,1716910237041,-150.0,0.000255,4]
[328126248,1716910237051,-344.39583779,0.00025524,2]
[328126249,1716910237060,-153.82568732,0.00025554,2]
[328126250,1716910237070,-152.55,0.00025606,2]
[328126251,1716910237080,-344.39583779,0.0002561,2]
[328126252,1716910237090,-10766.404645,0.00025616,2]
[328126253,1716910237100,-18633.044255,0.00025616,2]
[328126254,1716910237109,-2573.903444,0.00025616,2]
[328126255,1716910237119,-155.6088353,0.00025637,2]
[328126256,1716910237128,-155.6088353,0.0002577,2]
[328126257,1716910237138,-155.51610014,0.00025793,2]
[328126258,1716910237147,-155.58720731,0.00025799,2]
[328126259,1716910237157,-153.82568732,0.00025847,2]
[328126260,1716910237167,-159.82,0.0002589,2]
[328126261,1716910237176,-166.66666666,0.00025905,2]
[328126262,1716910237187,-10766.404645,0.00025925,2]
[328126263,1716910237199,-18633.044255,0.00025925,2]
[328126264,1716910237209,-2573.903444,0.00025925,2]
[328126265,1716910237218,-153.82568732,0.00025935,2]
[328126266,1716910237227,-164.32334778,0.00025961,2]
[328126267,1716910237236,-1000.0,0.00026,2]
[328126268,1716910237246,-150.0,0.00026,4]
[328126269,1716910237256,-628.86268748,0.00026013,2]
[328126270,1716910237265,-989.17242389,0.00026043,2]
[328126271,1716910237275,-509.92,0.00026056,2]
[328126272,1716910237285,-222.57973072,0.00026074,2]
[328126273,1716910237294,-150.0,0.00026079,2]
[328126274,1716910237304,-166.83499667,0.00026087,2]
[328126275,1716910237313,-375.12325086,0.00026099,2]
[328126276,1716910237322,-153.97905695,0.00026128,2]
[328126277,1716910237331,-175.13,0.00026145,2]
[328126278,1716910237340,-628.86268748,0.00026186,2]
[328126279,1716910237350,-544.0,0.000262,2]
[328126280,1716910237359,-344.39583779,0.00026237,2]
[328126281,1716910237369,-152.9226701,0.00026287,2]
[328126282,1716910237378,-12411.15,0.00026301,2]
[328126283,1716910237387,-344.39583779,0.00026304,2]
[328126284,1716910237397,-157.93985284,0.00026311,2]
[328126285,1716910237407,-155.6088353,0.00026324,2]
[328126286,1716910237417,-157.53000092,0.0002633,2]
[328126287,1716910237427,-155.58720731,0.00026337,2]
[328126288,1716910237436,-278.24931682,0.00026354,2]
[328126289,1716910237448,-170.5945697,0.0002637,2]
[328126290,1716910237458,-155.51610014,0.00026399,2]
[328126291,1716910237467,-278.24931682,0.00026457,2]
[328126292,1716910237476,-628.86268748,0.00026471,2]
[328126293,1716910237486,-628.86268748,0.00026478,2]
[328126294,1716910237496,-150.0,0.000265,5]
[328126295,1716910237506,-151.40096085,0.00026513,2]
[328126296,1716910237515,-152.9226701,0.00026522,2]
[328126297,1716910237525,-166.66666666,0.00026523,2]
[328126298,1716910237535,-176.31670544,0.00026524,2]
[328126299,1716910237545,-151.40096085,0.00026552,2]
[328126300,1716910237555,-499.99,0.00026575,2]
[328126301,1716910237566,-278.24931682,0.00026605,2]
[328126302,1716910237575,-299.93869325,0.00026677,2]
[328126303,1716910237586,-155.51610014,0.00026694,2]
[328126304,1716910237596,-157.93985284,0.000267,2]
[328126305,1716910237606,-9795.97906374,0.00026768,2]
[328126306,1716910237616,-1500.0,0.000268,14]
[328126307,1716910237626,-166.12125217,0.00026813,2]
[328126308,1716910237636,-344.39583779,0.00026835,2]
[328126309,1716910237646,-202.45,0.00026921,2]
[328126310,1716910237656,-151.40096085,0.00026965,2]
[328126311,1716910237665,-157.53000092,0.00026981,2]
[328126312,1716910237675,-1000.0,0.00027,2]
[328126313,1716910237684,-155.0,0.00027,4]
[328126314,1716910237699,-156.4062371,0.00027,2]
[328126315,1716910237708,-1000.0,0.00027,6]
[328126316,1716910237718,-1002.0,0.00027,6]
[328126317,1716910237727,-2000.0,0.00027,2]
[328126318,1716910237737,-1100.0,0.00027,2]
[328126319,1716910237746,-150.0,0.00027,5]
[328126320,1716910237755,-3801.754932,0.0002701,2]
[328126321,1716910237765,-628.86268748,0.0002703,2]
[328126322,1716910237774,-164.32334778,0.00027052,2]
[328126323,1716910237784,-155.51610014,0.00027055,2]
[328126324,1716910237793,-153.82568732,0.00027072,2]
[328126325,1716910237803,-154.11352299,0.00027112,2]
[328126326,1716910237813,-155.51610014,0.00027133,2]
[328126327,1716910237823,-2191.2864772,0.00027222,10]
[328126328,1716910237832,-166.66666666,0.00027267,2]
[328126329,1716910237841,-278.24931682,0.00027271,2]
[328126330,1716910237851,-628.86268748,0.00027287,2]
[328126331,1716910237861,-1807.67972827,0.00027297,2]
[328126332,1716910237870,-375.12325086,0.00027297,2]
[328126333,1716910237880,-278.24931682,0.00027315,2]
[328126334,1716910237889,-151.40096085,0.0002733,2]
[328126335,1716910237899,-166.83499667,0.0002737,2]
[328126336,1716910237908,-805.91709047,0.0002739,2]
[328126337,1716910237918,-150.0,0.00027393,2]
[328126338,1716910237933,-52182.64089315,0.00027397,11]
[328126339,1716910237983,-500.0,0.00027397,2]
[328126340,1716910237993,-513.06454974,0.00027397,2]
[328126341,1716910238002,-507.10739451,0.00027397,2]
[328126342,1716910238013,-500.0,0.00027397,2]
[328126343,1716910238022,-542.35271204,0.00027397,2]
[328126344,1716910238032,-500.0,0.00027397,2]
[328126345,1716910238042,-500.49134274,0.00027397,2]
[328126346,1716910238051,-511.4970123,0.00027397,2]
[328126347,1716910238061,-158.76156566,0.00027397,2]
[328126348,1716910238070,-500.0,0.00027397,2]
[328126349,1716910238080,-446.63307063,0.00027397,2]
[328126350,1716910238090,-504.818824,0.00027397,2]
[328126351,1716910238099,-502.77220556,0.00027397,2]
[328126352,1716910238108,-500.0,0.00027397,2]
[328126353,1716910238118,-500.0,0.00027397,2]
[328126354,1716910238127,-451.29989768,0.00027397,2]
[328126355,1716910238136,-500.0,0.00027397,2]
[328126356,1716910238146,-264.20762203,0.00027397,2]
[328126357,1716910238155,-155.40655589,0.00027397,2]
[328126358,1716910238164,-500.0,0.00027397,2]
[328126359,1716910238174,-500.0,0.00027397,2]
[328126360,1716910238184,-500.0,0.00027397,2]
[328126361,1716910238197,-500.0,0.00027397,2]
[328126362,1716910238206,-500.0,0.00027397,2]
[328126363,1716910238215,-500.0,0.00027397,2]
[328126364,1716910238224,-500.0,0.00027397,2]
[328126365,1716910238233,-500.0,0.00027397,2]
[328126366,1716910238243,-250.57126434,0.00027397,2]
[328126367,1716910238253,-500.0,0.00027397,2]
[328126368,1716910238262,-500.0,0.00027397,2]
[328126369,1716910238271,-500.0,0.00027397,2]
[328126370,1716910238281,-500.0,0.00027397,2]
[328126371,1716910238290,-500.0,0.00027397,2]
[328126372,1716910238299,-500.0,0.00027397,2]
[328126373,1716910238307,-523.78901766,0.00027397,2]
[328126374,1716910238318,-500.0,0.00027397,2]
[328126375,1716910238327,-500.0,0.00027397,2]
[328126376,1716910238335,-646.93,0.00027397,2]
[328126377,1716910238345,-500.0,0.00027397,2]
[328126378,1716910238355,-269.33326585,0.00027397,2]
[328126379,1716910238365,-608.17105685,0.00027397,2]
[328126380,1716910238375,-500.0,0.00027397,2]
[328126381,1716910238395,-500.0,0.00027397,2]
[328126382,1716910238406,-500.0,0.00027397,2]
[328126383,1716910238416,-500.0,0.00027397,2]
[328126384,1716910238425,-500.0,0.00027397,2]
[328126385,1716910238435,-500.0,0.00027397,2]
[328126386,1716910238448,-511.74590139,0.00027397,2]
[328126387,1716910238457,-500.0,0.00027397,2]
[328126388,1716910238470,-500.0,0.00027397,2]
[328126389,1716910238479,-300.39265402,0.00027397,2]
[328126390,1716910238488,-372.51545335,0.00027397,2]
[328126391,1716910238498,-500.0,0.00027397,2]
[328126392,1716910238507,-500.0,0.00027397,2]
[328126393,1716910238516,-500.0,0.00027397,2]
[328126394,1716910238526,-500.0,0.00027397,2]
[328126395,1716910238535,-363.08891079,0.00027397,2]
[328126396,1716910238545,-500.0,0.00027397,2]
[328126397,1716910238554,-172.93703707,0.00027397,2]
[328126398,1716910238563,-329.47285145,0.00027397,2]
[328126399,1716910238572,-511.27428705,0.00027397,2]
[328126400,1716910238581,-500.0,0.00027397,2]
[328126401,1716910238590,-500.0,0.00027397,2]
[328126402,1716910238599,-514.25613491,0.00027397,2]
[328126403,1716910238608,-266.27832362,0.00027397,2]
[328126404,1716910238618,-509.51785237,0.00027397,2]
[328126405,1716910238627,-500.0,0.00027397,2]
[328126406,1716910238637,-500.0,0.00027397,2]
[328126407,1716910238646,-511.35262696,0.00027397,2]
[328126408,1716910238656,-300.0,0.00027397,2]
[328126409,1716910238665,-3757.66,0.00027397,2]
[328126410,1716910238674,-500.0,0.00027397,2]
[328126411,1716910238683,-500.0,0.00027397,2]
[328126412,1716910238694,-500.0,0.00027397,2]
[328126413,1716910238703,-241.57910578,0.00027397,2]
[328126414,1716910238712,-515.48690512,0.00027397,2]
[328126415,1716910238721,-500.0,0.00027397,2]
[328126416,1716910238730,-500.0,0.00027397,2]
[328126417,1716910238739,-507.5748738,0.00027397,2]
[328126418,1716910238748,-500.0,0.00027397,2]
[328126419,1716910238758,-500.0,0.00027397,2]
[328126420,1716910238767,-500.0,0.00027397,2]
[328126421,1716910238776,-500.0,0.00027397,2]
[328126422,1716910238786,-500.0,0.00027397,2]
[328126423,1716910238795,-500.0,0.00027397,2]
[328126424,1716910238805,-501.73899977,0.00027397,2]
[328126425,1716910238814,-499.55370365,0.00027397,2]
[328126426,1716910238823,-500.0,0.00027397,2]
[328126427,1716910238832,-500.0,0.00027397,2]
[328126428,1716910238842,-500.0,0.00027397,2]
[328126429,1716910238851,-500.0,0.00027397,2]
[328126430,1716910238860,-500.0,0.00027397,2]
[328126431,1716910238869,-500.0,0.00027397,2]
[328126432,1716910238879,-500.0,0.00027397,2]
[328126433,1716910238888,-500.0,0.00027397,2]
[328126434,1716910238898,-500.0,0.00027397,2]
[328126435,1716910238907,-500.0,0.00027397,2]
[328126436,1716910238917,-500.0,0.00027397,2]
[328126437,1716910238927,-500.0,0.00027397,2]
[328126438,1716910238942,-500.0,0.00027397,2]
[328126439,1716910238951,-500.0,0.00027397,2]
[328126440,1716910238960,-500.0,0.00027397,2]
[328126442,1716910238970,-500.0,0.00027397,2]
[328126444,1716910238980,-500.0,0.00027397,2]
[328126446,1716910238990,-200.85368304,0.00027397,2]
[328126447,1716910239000,-158.49254206,0.00027397,2]
[328126448,1716910239011,-500.0,0.00027397,2]
[328126449,1716910239026,-500.0,0.00027397,2]
[328126450,1716910239037,-500.0,0.00027397,2]
[328126451,1716910239047,-500.0,0.00027397,2]
[328126452,1716910239058,-155.88476269,0.00027397,2]
[328126453,1716910239068,-500.0,0.00027397,2]
[328126454,1716910239080,-500.0,0.00027397,2]
[328126455,1716910239090,-2081.70535037,0.00027397,2]
[328126456,1716910239101,-499.64712548,0.00027397,2]
[328126457,1716910239112,-500.0,0.00027397,2]
[328126458,1716910239122,-500.0,0.00027397,2]
[328126459,1716910239132,-500.0,0.00027397,2]
[328126460,1716910239142,-317.40052433,0.00027397,2]
[328126461,1716910239153,-500.0,0.00027397,2]
[328126462,1716910239163,-500.0,0.00027397,2]
[328126463,1716910239174,-500.0,0.00027397,2]
[328126464,1716910239184,-500.0,0.00027397,2]
[328126465,1716910239196,-500.0,0.00027397,2]
[328126466,1716910239207,-500.0,0.00027397,2]
[328126467,1716910239217,-500.0,0.00027397,2]
[328126468,1716910239227,-500.0,0.00027397,2]
[328126469,1716910239237,-500.0,0.00027397,2]
[328126470,1716910239248,-500.0,0.00027397,2]
[328126471,1716910239258,-500.0,0.00027397,2]
[328126472,1716910239268,-158.38487908,0.00027397,2]
[328126473,1716910239279,-500.0,0.00027397,2]
[328126474,1716910239289,-326.0854676,0.00027397,2]
[328126475,1716910239299,-500.0,0.00027397,2]
[328126476,1716910239308,-500.0,0.00027397,2]
[328126477,1716910239320,-199.89705062,0.00027397,2]
[328126478,1716910239330,-500.0,0.00027397,2]
[328126479,1716910239340,-501.22151229,0.00027397,2]
[328126480,1716910239350,-500.0,0.00027397,2]
[328126482,1716910239359,-500.0,0.00027397,2]
[328126483,1716910239370,-500.0,0.00027397,2]
[328126484,1716910239379,-500.0,0.00027397,2]
[328126485,1716910239390,-307.8230756,0.00027397,2]
[328126487,1716910239400,-500.0,0.00027397,2]
[328126488,1716910239411,-500.0,0.00027397,2]
[328126489,1716910239421,-500.0,0.00027397,2]
[328126490,1716910239430,-500.0,0.00027397,2]
[328126491,1716910239442,-500.0,0.00027397,2]
[328126492,1716910239452,-500.0,0.00027397,2]
[328126493,1716910239462,-500.0,0.00027397,2]
[328126494,1716910239472,-500.0,0.00027397,2]
[328126495,1716910239482,-500.0,0.00027397,2]
[328126496,1716910239493,-500.0,0.00027397,2]
[328126497,1716910239503,-500.0,0.00027397,2]
[328126498,1716910239513,-500.0,0.00027397,2]
[328126499,1716910239523,-500.0,0.00027397,2]
[328126500,1716910239533,-500.0,0.00027397,2]
[328126501,1716910239544,-500.0,0.00027397,2]
[328126502,1716910239554,-499.89879926,0.00027397,2]
[328126503,1716910239564,-502.64311223,0.00027397,2]
[328126504,1716910239575,-500.0,0.00027397,2]
[328126505,1716910239585,-500.0,0.00027397,2]
[328126506,1716910239594,-500.0,0.00027397,2]
[328126507,1716910239605,-500.0,0.00027397,2]
[328126508,1716910239615,-500.0,0.00027397,2]
[328126509,1716910239624,-500.0,0.00027397,2]
[328126510,1716910239636,-523.81091847,0.00027397,2]
[328126511,1716910239646,-510.24227482,0.00027397,2]
[328126512,1716910239656,-519.81038921,0.00027397,2]
[328126513,1716910239666,-500.0,0.00027397,2]
[328126514,1716910239676,-500.0,0.00027397,2]
[328126515,1716910239686,-500.0,0.00027397,2]
[328126516,1716910239698,-500.0,0.00027397,2]
[328126517,1716910239707,-500.0,0.00027397,2]
[328126518,1716910239717,-500.0,0.00027397,2]
[328126519,1716910239727,-500.0,0.00027397,2]
[328126520,1716910239737,-500.0,0.00027397,2]
[328126521,1716910239747,-544.19212856,0.00027397,2]
[328126522,1716910239759,-500.0,0.00027397,2]
[328126523,1716910239770,-514.24671548,0.00027397,2]
[328126524,1716910239781,-216.96271282,0.00027397,2]
[328126525,1716910239792,-500.0,0.00027397,2]
[328126526,1716910239803,-500.0,0.00027397,2]
[328126527,1716910239814,-579.38,0.00027397,2]
[328126528,1716910239824,-500.0,0.00027397,2]
[328126529,1716910239836,-500.0,0.00027397,2]
[328126530,1716910239846,-500.15,0.00027397,2]
[328126531,1716910239857,-500.0,0.00027397,2]
[328126532,1716910239868,-500.0,0.00027397,2]
[328126533,1716910239879,-500.0,0.00027397,2]
[328126534,1716910239890,-500.0,0.00027397,2]
[328126535,1716910239901,-150.0,0.00027397,2]
[328126536,1716910239912,-500.0,0.00027397,2]
[328126537,1716910239922,-507.98922041,0.00027397,2]
[328126538,1716910239936,-500.0,0.00027397,2]
[328126539,1716910239949,-324.26699047,0.00027397,2]
[328126540,1716910239960,-500.0,0.00027397,2]
[328126541,1716910239971,-500.0,0.00027397,2]
[328126542,1716910239982,-500.0,0.00027397,2]
[328126543,1716910239993,-500.0,0.00027397,2]
[328126544,1716910240004,-511.99734585,0.00027397,2]
[328126545,1716910240018,-522.0247361,0.00027397,2]
[328126546,1716910240030,-500.0,0.00027397,2]
[328126547,1716910240041,-500.0,0.00027397,2]
[328126548,1716910240052,-500.0,0.00027397,2]
[328126549,1716910240062,-504.03568829,0.00027397,2]
[328126550,1716910240073,-500.0,0.00027397,2]
[328126551,1716910240084,-500.0,0.00027397,2]
[328126552,1716910240095,-515.60891885,0.00027397,2]
[328126553,1716910240105,-500.0,0.00027397,2]
[328126554,1716910240116,-500.0,0.00027397,2]
[328126555,1716910240127,-500.0,0.00027397,2]
[328126556,1716910240137,-500.0,0.00027397,2]
[328126557,1716910240147,-510.52180114,0.00027397,2]
[328126558,1716910240158,-509.64310874,0.00027397,2]
[328126559,1716910240169,-500.0,0.00027397,2]
[328126560,1716910240180,-500.0,0.00027397,2]
[328126561,1716910240191,-526.48588205,0.00027397,2]
[328126562,1716910240203,-500.0,0.00027397,2]
[328126563,1716910240213,-500.0,0.00027397,2]
[328126564,1716910240224,-500.0,0.00027397,2]
[328126565,1716910240235,-557.23349838,0.00027397,2]
[328126566,1716910240246,-500.0,0.00027397,2]
[328126567,1716910240256,-523.17833266,0.00027397,2]
[328126568,1716910240267,-500.0,0.00027397,2]
[328126569,1716910240277,-500.0,0.00027397,2]
[328126570,1716910240289,-500.0,0.00027397,2]
[328126571,1716910240299,-500.0,0.00027397,2]
[328126572,1716910240310,-500.0,0.00027397,2]
[328126573,1716910240320,-510.97947803,0.00027397,2]
[328126574,1716910240331,-500.0,0.00027397,2]
[328126575,1716910240342,-500.0,0.00027397,2]
[328126576,1716910240352,-528.35683261,0.00027397,2]
[328126577,1716910240363,-514.09535043,0.00027397,2]
[328126578,1716910240373,-6398.3,0.00027397,2]
[328126579,1716910240384,-532.11393656,0.00027397,2]
[328126580,1716910240395,-500.0,0.00027397,2]
[328126581,1716910240405,-500.0,0.00027397,2]
[328126582,1716910240416,-500.0,0.00027397,2]
[328126583,1716910240426,-500.0,0.00027397,2]
[328126584,1716910240437,-500.0,0.00027397,2]
[328126585,1716910240449,-500.0,0.00027397,2]
[328126586,1716910240459,-249.32501034,0.00027397,2]
[328126587,1716910240469,-500.0,0.00027397,2]
[328126588,1716910240479,-500.0,0.00027397,2]
[328126589,1716910240490,-518.5193634,0.00027397,2]
[328126590,1716910240501,-375.61921051,0.00027397,2]
[328126591,1716910240511,-529.88506233,0.00027397,2]
[328126592,1716910240522,-500.0,0.00027397,2]
[328126593,1716910240533,-500.0,0.00027397,2]
[328126594,1716910240543,-500.0,0.00027397,2]
[328126595,1716910240554,-500.0,0.00027397,2]
[328126596,1716910240564,-342.11059427,0.00027397,2]
[328126597,1716910240575,-500.3257672,0.00027397,2]
[328126599,1716910240586,-500.0,0.00027397,2]
[328126600,1716910240596,-500.0,0.00027397,2]
[328126601,1716910240607,-500.0,0.00027397,2]
[328126602,1716910240617,-500.0,0.00027397,2]
[328126603,1716910240627,-543.13426656,0.00027397,2]
[328126604,1716910240638,-282.78780674,0.00027397,2]
[328126605,1716910240648,-500.0,0.00027397,2]
[328126606,1716910240659,-384.98043063,0.00027397,2]
[328126607,1716910240669,-500.0,0.00027397,2]
[328126608,1716910240679,-500.0,0.00027397,2]
[328126609,1716910240689,-639.74158781,0.00027397,2]
[328126610,1716910240702,-500.0,0.00027397,2]
[328126611,1716910240712,-516.55200865,0.00027397,2]
[328126612,1716910240722,-501.60294051,0.00027397,2]
[328126613,1716910240732,-504.71163498,0.00027397,2]
[328126614,1716910240741,-500.0,0.00027397,2]
[328126615,1716910240751,-537.0919714,0.00027397,2]
[328126616,1716910240762,-530.63054991,0.00027397,2]
[328126617,1716910240772,-500.0,0.00027397,2]
[328126618,1716910240782,-500.0,0.00027397,2]
[328126619,1716910240792,-500.0,0.00027397,2]
[328126620,1716910240802,-562.67366152,0.00027397,2]
[328126621,1716910240812,-500.0,0.00027397,2]